fUST/lending_fUST_20240628
["ID","MTS","AMOUNT","RATE_DAILY","PERIOD"]
[330501194,1719521354651,-153.0,0.00028892,2]
[330501195,1719521354674,-153.0,0.00028892,2]
[330501196,1719521354696,-153.0,0.00028892,2]
[330501197,1719521354717,-153.0,0.00028892,2]
[330501198,1719521354738,-153.0,0.00028892,2]
[330501199,1719521354758,-153.0,0.00028892,2]
[330501200,1719521354780,-153.0,0.00028892,2]
[330501201,1719521354801,-153.0,0.00028892,2]
[330501202,1719521354823,-153.0,0.00028892,2]
[330501203,1719521354844,-153.0,0.00028892,2]
[330501204,1719521354974,-153.0,0.00028892,2]
[330501205,1719521355021,-153.0,0.00028892,2]
[330501206,1719521355043,-157.53820426,0.00029313,2]
[330501207,1719521355079,153.0,0.00028892,2]
[330501208,1719521355150,153.0,0.00028892,2]
[330501209,1719521355616,153.0,0.00028892,2]
[330501210,1719521364751,154.82195475,0.00023966,2]
[330501211,1719521370175,159.50123805,0.00030382,7]
[330501212,1719521370198,9044.13982442,0.00030382,7]
[330501213,1719521379042,6300.30897544,0.00024118,2]
[330501214,1719521399397,16224.55368214,0.00024118,2]
[330501215,1719521418773,10566.16869568,0.00029999,2]
[330501283,1719521438374,-100188.12808672,0.00030382,7]
[330501285,1719521438384,-297.87820457,0.00030573,2]
[330501287,1719521438394,-153.80876398,0.00030673,7]
[330501289,1719521438404,-819.0999939,0.00031209,2]
[330501292,1719521438414,-500.0,0.00031232,30]
[330501293,1719521438423,-297.87820456,0.00033784,2]
[330501295,1719521438433,-10342.99274648,0.00035,2]
[330501297,1719521438443,-2709.72121891,0.00035,4]
[330501300,1719521438453,-172.82370421,0.00035224,7]
[330501302,1719521438462,-162.300387,0.00035582,2]
[330501304,1719521438472,-1779.23138452,0.00035615,4]
[330501306,1719521438481,-297.87820456,0.00036995,2]
[330501308,1719521438491,-1707.53396171,0.00037259,60]
[330501310,1719521438501,-1098.35636042,0.00037259,4]
[330501311,1719521438511,-1098.35636042,0.00037259,4]
[330501313,1719521438520,-491.60986908,0.00037999,2]
[330501315,1719521438530,-772.0,0.00038099,2]
[330501317,1719521438539,-245.192,0.00038099,2]
[330501319,1719521438549,-341.63813416,0.00039167,30]
[330501321,1719521438558,-172.29989744,0.00039167,4]
[330501324,1719521438568,-209.56639127,0.00039167,4]
[330501326,1719521438578,-244.97894054,0.00039393,4]
[330501327,1719521438587,-294.67476711,0.00039393,2]
[330501329,1719521438597,-6183.26252689,0.0003999,4]
[330501331,1719521438606,-1360.24,0.0003999,3]
[330501333,1719521438615,-2348.19,0.0003999,3]
[330501336,1719521438626,-689.36462818,0.0003999,3]
[330501440,1719521441427,-1267.45537182,0.0003999,3]
[330501442,1719521441438,-7544.51017779,0.0004,7]
[330501443,1719521441476,-16989.01137878,0.0004,7]
[330501444,1719521441484,-297.87820456,0.00040206,28]
[330501445,1719521441494,-255.29572675,0.00040278,4]
[330501446,1719521441503,-156.80969809,0.00040278,4]
[330501447,1719521441512,-2654.63,0.00041095,120]
[330501448,1719521441521,-537.574,0.00041099,2]
[330501449,1719521441530,-372.92900363,0.00041314,4]
[330501450,1719521441539,-2654.63,0.00041369,120]
[330501451,1719521441548,-352.26518214,0.00041589,4]
[330501452,1719521441557,-307.64481642,0.00041643,120]
[330501453,1719521441569,-2346.98518358,0.00041643,120]
[330501454,1719521441578,-2654.63,0.00041917,120]
[330501455,1719521441586,-154.82195475,0.00041999,4]
[330501456,1719521441595,-153.0,0.00042466,2]
[330501457,1719521441604,-153.0,0.00042466,2]
[330501458,1719521441613,-153.0,0.00042466,2]
[330501459,1719521441622,-153.0,0.00042466,2]
[330501460,1719521441631,-230.6900715,0.00042466,2]
[330501461,1719521441639,-153.0,0.00042466,2]
[330501462,1719521441649,-153.0,0.00042466,2]
[330501463,1719521441657,-594.0,0.000426,30]
[330501464,1719521441666,-307.2836111,0.0004274,2]
[330501465,1719521441675,-306.0,0.0004274,2]
[330501466,1719521441684,-411.7148896,0.0004274,2]
[330501467,1719521441694,-153.0,0.00042877,2]
[330501468,1719521441703,-153.0,0.00042877,2]
[330501469,1719521441712,-153.0,0.00042877,2]
[330501470,1719521441721,-153.0,0.00042877,2]
[330501471,1719521441730,-153.0,0.00042877,2]
[330501472,1719521441739,-153.0,0.00042877,2]
[330501473,1719521441750,-153.0,0.00042877,2]
[330501474,1719521441759,-153.0,0.00042877,2]
[330501475,1719521441768,-153.0,0.00042877,2]
[330501476,1719521441777,-6183.26252689,0.00042989,5]
[330501477,1719521441786,-1967.45654607,0.00042999,30]
[330501478,1719521441795,-5671.21081226,0.00043,30]
[330501479,1719521441804,-205.6831939,0.00043014,2]
[330501480,1719521441812,-153.0,0.00043151,2]
[330501481,1719521441821,-153.0,0.00043151,2]
[330501482,1719521441830,-153.0,0.00043151,2]
[330501483,1719521441839,-153.0,0.00043151,2]
[330501484,1719521441848,-205.8574448,0.00043151,2]
[330501485,1719521441857,-153.0,0.00043151,2]
[330501486,1719521441866,-153.0,0.00043151,2]
[330501487,1719521441875,-153.0,0.00043151,2]
[330501488,1719521441885,-307.3112498,0.00043151,2]
[330501489,1719521441894,-150.83408251,0.00043297,2]
[330501490,1719521441902,-153.0,0.00043425,2]
[330501491,1719521441911,-153.0,0.00043425,2]
[330501492,1719521441920,-153.0,0.00043425,2]
[330501493,1719521441929,-153.0,0.00043425,2]
[330501494,1719521441938,-3030.38891176,0.000435,120]
[330501495,1719521441947,-5267.47849281,0.00043711,2]
[330501496,1719521441956,-151.0,0.00043825,14]
[330501497,1719521441965,-151.0,0.00043825,14]
[330501498,1719521441974,-151.0,0.00043825,14]
[330501499,1719521441983,-151.0,0.00043825,14]
[330501500,1719521441992,-151.0,0.00043825,14]
[330501501,1719521442001,-151.0,0.00043825,14]
[330501502,1719521442011,-74199.1503227,0.00043825,5]
[330501503,1719521442020,-324.52500861,0.00043835,3]
[330501504,1719521442029,-500.0,0.00043835,120]
[330501505,1719521442038,-18711.33,0.00043835,120]
[330501506,1719521442047,-500.0,0.00043835,120]
[330501507,1719521442056,-504.10189876,0.00043835,120]
[330501508,1719521442065,-500.0,0.00043835,120]
[330501509,1719521442075,-500.0,0.00043835,120]
[330501510,1719521442084,-820.98,0.00043835,120]
[330501511,1719521442093,-500.0,0.00043835,120]
[330501512,1719521442105,-9999.0,0.00043835,14]
[330501513,1719521442115,-500.0,0.00043835,120]
[330501514,1719521442124,-500.0,0.00043835,120]
[330501515,1719521442135,-500.0,0.00043835,120]
[330501516,1719521442144,-500.0,0.00043835,120]
[330501517,1719521442155,-500.0,0.00043835,120]
[330501518,1719521442164,-500.0,0.00043835,30]
[330501519,1719521442173,-500.0,0.00043835,120]
[330501520,1719521442286,-518.33,0.00043835,120]
[330501521,1719521442296,-500.0,0.00043835,120]
[330501522,1719521442306,-500.0,0.00043835,120]
[330501523,1719521442318,-500.0,0.00043835,120]
[330501524,1719521442331,-500.0,0.00043835,120]
[330501525,1719521442344,-500.0,0.00043835,120]
[330501526,1719521442353,-500.0,0.00043835,120]
[330501527,1719521442363,-500.0,0.00043835,120]
[330501528,1719521442374,-528.35954986,0.00043835,120]
[330501529,1719521442383,-500.0,0.00043835,120]
[330501530,1719521442394,-500.0,0.00043835,120]
[330501531,1719521442403,-500.0,0.00043835,120]
[330501532,1719521442412,-500.0,0.00043835,120]
[330501533,1719521442422,-500.0,0.00043835,120]
[330501534,1719521442431,-500.0,0.00043835,120]
[330501535,1719521442441,-171.15126549,0.00043835,120]
[330501536,1719521442451,-500.0,0.00043835,120]
[330501537,1719521442462,-500.0,0.00043835,120]
[330501538,1719521442471,-500.0,0.00043835,120]
[330501539,1719521442480,-500.0,0.00043835,120]
[330501540,1719521442489,-500.0,0.00043835,120]
[330501541,1719521442499,-500.0,0.00043835,120]
[330501542,1719521442509,-562.04,0.00043835,120]
[330501543,1719521442519,-500.0,0.00043835,120]
[330501544,1719521442530,-500.0,0.00043835,120]
[330501545,1719521442540,-500.0,0.00043835,120]
[330501546,1719521442549,-500.0,0.00043835,120]
[330501547,1719521442558,-658.82,0.00043835,120]
[330501548,1719521442567,-500.0,0.00043835,120]
[330501549,1719521442576,-500.0,0.00043835,120]
[330501550,1719521442585,-500.0,0.00043835,120]
[330501551,1719521442594,-512.5664214,0.00043835,120]
[330501552,1719521442604,-500.0,0.00043835,120]
[330501553,1719521442613,-500.0,0.00043835,120]
[330501554,1719521442622,-500.0,0.00043835,120]
[330501555,1719521442631,-500.0,0.00043835,120]
[330501556,1719521442641,-500.0,0.00043835,120]
[330501557,1719521442650,-180.8315787,0.00043835,120]
[330501558,1719521442660,-500.0,0.00043835,120]
[330501559,1719521442670,-500.0,0.00043835,120]
[330501560,1719521442679,-310.26,0.00043835,7]
[330501561,1719521442688,-1355.95,0.00043835,120]
[330501562,1719521442697,-500.0,0.00043835,120]
[330501563,1719521442706,-515.81703651,0.00043835,120]
[330501564,1719521442716,-1919.47,0.00043835,120]
[330501565,1719521442725,-1919.47,0.00043835,120]
[330501566,1719521442734,-1919.47,0.00043835,120]
[330501567,1719521442743,-500.0,0.00043835,120]
[330501568,1719521442752,-1919.47,0.00043835,120]
[330501569,1719521442762,-500.0,0.00043835,120]
[330501570,1719521442771,-1919.47,0.00043835,120]
[330501571,1719521442781,-1919.47,0.00043835,120]
[330501572,1719521442792,-1919.47,0.00043835,120]
[330501573,1719521442801,-1919.47,0.00043835,120]
[330501574,1719521442811,-1919.47,0.00043835,120]
[330501575,1719521442820,-1919.47,0.00043835,120]
[330501576,1719521442829,-1919.47,0.00043835,120]
[330501577,1719521442839,-1919.47,0.00043835,120]
[330501578,1719521442848,-1919.47,0.00043835,120]
[330501579,1719521442858,-5.21774703,0.00043835,120]
[330501580,1719521442885,-494.78225297,0.00043835,120]
[330501581,1719521442894,-1919.47,0.00043835,120]
[330501582,1719521442904,-1919.47,0.00043835,120]
[330501583,1719521442913,-500.0,0.00043835,120]
[330501584,1719521442923,-1919.47,0.00043835,120]
[330501585,1719521442933,-1919.47,0.00043835,120]
[330501586,1719521442942,-500.0,0.00043835,120]
[330501587,1719521442953,-1919.47,0.00043835,120]
[330501588,1719521442962,-1919.47,0.00043835,120]
[330501589,1719521442971,-1919.47,0.00043835,120]
[330501591,1719521442981,-1919.47,0.00043835,120]
[330501593,1719521442990,-1919.47,0.00043835,120]
[330501595,1719521443000,-500.0,0.00043835,120]
[330501597,1719521443010,-1919.47,0.00043835,120]
[330501599,1719521443019,-1919.64952554,0.00043835,120]
[330501600,1719521443029,-500.0,0.00043835,120]
[330501603,1719521443039,-500.0,0.00043835,120]
[330501604,1719521443049,-500.0,0.00043835,120]
[330501607,1719521443058,-500.0,0.00043835,120]
[330501609,1719521443068,-500.0,0.00043835,120]
[330501611,1719521443077,-500.0,0.00043835,120]
[330501613,1719521443086,-500.0,0.00043835,120]
[330501615,1719521443096,-500.0,0.00043835,120]
[330501617,1719521443108,-500.0,0.00043835,120]
[330501619,1719521443117,-500.0,0.00043835,120]
[330501621,1719521443127,-500.0,0.00043835,120]
[330501623,1719521443136,-500.0,0.00043835,120]
[330501625,1719521443146,-500.0,0.00043835,120]
[330501627,1719521443156,-500.0,0.00043835,120]
[330501629,1719521443165,-708.74,0.00043835,120]
[330501632,1719521443174,-500.0,0.00043835,120]
[330501635,1719521443184,-405.18877806,0.00043835,120]
[330501644,1719521443570,-0.00517198,0.00042398,4]
[330501645,1719521443582,-640.2397645,0.00042398,4]
[330501646,1719521443591,-297.87820456,0.00043417,28]
[330501647,1719521443600,-94.81122194,0.00043835,120]
[330501648,1719521443609,-623.28,0.00043835,120]
[330501649,1719521443620,-500.0,0.00043835,120]
[330501650,1719521443629,-500.0,0.00043835,120]
[330501651,1719521443639,-500.0,0.00043835,120]
[330501652,1719521443649,-500.0,0.00043835,120]
[330501653,1719521443658,-500.0,0.00043835,120]
[330501654,1719521443668,-699.81,0.00043835,120]
[330501655,1719521443677,-1125.97,0.00043835,120]
[330501656,1719521443686,-285.789629,0.00043835,14]
[330501657,1719521443695,-500.0,0.00043835,120]
[330501658,1719521443705,-507.48061148,0.00043835,120]
[330501659,1719521443714,-511.87729417,0.00043835,120]
[330501660,1719521443723,-500.0,0.00043835,10]
[330501661,1719521443732,-500.0,0.00043835,120]
[330501662,1719521443741,-500.0,0.00043835,120]
[330501663,1719521443750,-500.0,0.00043835,120]
[330501664,1719521443760,-500.0,0.00043835,120]
[330501665,1719521443769,-500.0,0.00043835,120]
[330501666,1719521443778,-525.77,0.00043835,120]
[330501667,1719521443787,-500.0,0.00043835,120]
[330501668,1719521443796,-500.85611727,0.00043835,120]
[330501669,1719521443805,-507.53643496,0.00043835,120]
[330501670,1719521443814,-500.0,0.00043835,3]
[330501671,1719521443824,-599.73,0.00043835,120]
[330501672,1719521443833,-500.0,0.00043835,120]
[330501673,1719521443842,-500.0,0.00043835,7]
[330501674,1719521443851,-500.0,0.00043835,120]
[330501675,1719521443860,-500.0,0.00043835,120]
[330501676,1719521443869,-154.372248,0.00043835,14]
[330501677,1719521443878,-500.0,0.00043835,120]
[330501678,1719521443887,-545.14198002,0.00043835,120]
[330501679,1719521443896,-154.45674,0.00043835,14]
[330501680,1719521443906,-501.72502861,0.00043835,120]
[330501681,1719521443915,-240.72535651,0.00043835,120]
[330501682,1719521443926,-500.0,0.00043835,120]
[330501683,1719521443936,-500.0,0.00043835,30]
[330501684,1719521443945,-500.0,0.00043835,120]
[330501685,1719521443954,-500.0,0.00043835,120]
[330501686,1719521443965,-611.64,0.00043835,120]
[330501687,1719521443974,-500.0,0.00043835,120]
[330501688,1719521444073,-500.0,0.00043835,30]
[330501689,1719521444083,-500.0,0.00043835,120]
[330501690,1719521444092,-500.0,0.00043835,120]
[330501691,1719521444102,-906.73,0.00043835,120]
[330501692,1719521444115,-545.19606427,0.00043835,120]
[330501693,1719521444125,-948.57,0.00043835,120]
[330501694,1719521444134,-500.0,0.00043835,120]
[330501695,1719521444144,-500.0,0.00043835,120]
[330501696,1719521444155,-500.0,0.00043835,120]
[330501697,1719521444164,-500.0,0.00043835,120]
[330501698,1719521444173,-996.89,0.00043835,120]
[330501699,1719521444183,-1749.82,0.00043835,120]
[330501700,1719521444193,-500.0,0.00043835,120]
[330501701,1719521444202,-500.0,0.00043835,120]
[330501702,1719521444212,-928.53,0.00043835,120]
[330501703,1719521444221,-500.0,0.00043835,120]
[330501704,1719521444230,-500.0,0.00043835,120]
[330501705,1719521444239,-500.0,0.00043835,120]
[330501706,1719521444249,-500.0,0.00043835,120]
[330501707,1719521444259,-500.0,0.00043835,120]
[330501708,1719521444268,-529.9337123,0.00043835,120]
[330501709,1719521444277,-604.79,0.00043835,120]
[330501710,1719521444286,-500.0,0.00043835,120]
[330501711,1719521444295,-500.0,0.00043835,120]
[330501712,1719521444304,-500.0,0.00043835,120]
[330501713,1719521444313,-500.0,0.00043835,120]
[330501714,1719521444322,-558.06,0.00043835,120]
[330501715,1719521444332,-500.0,0.00043835,120]
[330501716,1719521444342,-500.0,0.00043835,120]
[330501717,1719521444351,-1289.85,0.00043835,120]
[330501718,1719521444360,-500.0,0.00043835,120]
[330501719,1719521444370,-500.0,0.00043835,120]
[330501720,1719521444379,-500.0,0.00043835,120]
[330501721,1719521444389,-579.26877217,0.00043835,120]
[330501757,1719521446798,-250.677,0.00038099,2]
[330501758,1719521446808,-150.0,0.00041099,2]
[330501759,1719521446818,-153.0,0.00042466,2]
[330501760,1719521446827,-1049.53062053,0.00043825,3]
[330501761,1719521462429,16224.55368214,0.00029233,2]
[330501762,1719521542685,156.11079536,0.00024596,2]
[330501763,1719521543345,156.11079536,0.00026514,2]
[330501764,1719521543695,156.11079536,0.00027428,2]
[330501765,1719521547915,600.0,0.0002206,3]
[330501766,1719521548688,600.0,0.0002205,3]
[330501767,1719521549359,865.13232881,0.0002205,3]
[330501768,1719521704321,633.22481275,0.00018899,2]
[330501769,1719521704349,633.22481275,0.00018899,2]
[330501770,1719521704378,633.22481275,0.00018899,2]
[330501771,1719521704406,633.22481275,0.00018899,2]
[330501772,1719521704433,633.22481275,0.00018899,2]
[330501773,1719521704461,633.22481275,0.00018899,2]
[330501774,1719521704490,633.22481275,0.00018899,2]
[330501775,1719521704519,633.22481275,0.00018899,2]
[330501777,1719521943986,9606.64079942,0.00014998,2]
[330501778,1719521953593,9605.18213256,0.00014998,2]
[330501779,1719521965673,2099.40710865,0.00014998,2]
[330501780,1719521969648,19351.9714729,0.00014998,2]
[330501781,1719521976774,181.45676091,0.00014998,2]
[330501782,1719521980259,3247.80021622,0.00014999,2]
[330501783,1719521981976,16190.30006618,0.00014998,2]
[330501784,1719521983573,9605.18213256,0.00014998,2]
[330501785,1719521988640,154.98158415,0.00014998,2]
[330501786,1719521992936,154.97895015,0.00014998,2]
[330501789,1719522038602,1487.40194776,0.00014999,2]
[330501790,1719522067929,932.60140374,0.00014999,2]
[330501791,1719522075190,1118.17178868,0.00014999,2]
[330501792,1719522081153,10583.42713572,0.00014999,2]
[330501793,1719522112705,524.11142247,0.00014999,2]
[330501794,1719522140602,2519.40701101,0.00014999,2]
[330501795,1719522152347,2129.54772975,0.00014999,2]
[330501796,1719522164254,275.2362278,0.00014999,2]
[330501797,1719522168800,1374.81809454,0.00014999,2]
[330501798,1719522175214,528.76178297,0.00014999,2]
[330501799,1719522178396,154.83742071,0.00014999,2]
[330501800,1719522190151,250.27791645,0.00014999,2]
[330501801,1719522193792,154.92458343,0.00014999,2]
[330501802,1719522199165,214.67086582,0.00014999,2]
[330501803,1719522199773,3712.01499901,0.00014999,2]
[330501804,1719522231995,157.20552492,0.00014999,2]
[330501805,1719522237533,1118.17178868,0.00014999,2]
[330501807,1719522257452,154.86836189,0.00014999,2]
[330501808,1719522287480,3074.84022806,0.00014999,2]
[330501809,1719522288401,403.21401882,0.00014999,2]
[330501810,1719522313970,154.85288975,0.00014999,2]
[330501811,1719522326239,283.15650183,0.00014999,2]
[330501812,1719522338148,-364.12839496,0.000151,2]
[330501813,1719522343819,276.06,0.00010959,2]
[330501814,1719522354577,230.05,0.00010959,2]
[330501815,1719522364398,597.45420845,0.00014999,2]
[330501816,1719522365143,191.71,0.00010959,2]
[330501817,1719522375694,159.76,0.00010959,2]
[330501818,1719522385664,531.32438802,0.00014999,2]
[330501819,1719522386262,276.4,0.00010959,2]
[330501820,1719522396800,230.33,0.00010959,2]
[330501821,1719522407586,191.95,0.00010959,2]
[330501822,1719522418176,159.95,0.00010959,2]
[330501823,1719522428814,799.8,0.00010959,2]
[330501824,1719522429094,-853.0082195,0.00015023,2]
[330501825,1719522429113,-300.0,0.00015099,2]
[330501826,1719522429134,-300.0,0.00015099,2]
[330501827,1719522429154,-24535.87160504,0.000151,2]
[330501828,1719522429174,-866.264744,0.00015537,2]
[330501829,1719522429193,-3000.0,0.00015712,2]
[330501830,1719522429213,-1329.2387037,0.00015838,2]
[330501831,1719522429233,-3383.91948788,0.00016155,2]
[330501832,1719522429254,-42196.25432528,0.00016255,2]
[330501833,1719522429274,-570.67502715,0.00016255,2]
[330501834,1719522429293,-420.0,0.00016524,2]
[330501835,1719522429312,-420.0,0.00016609,2]
[330501836,1719522429332,-316.7339622,0.00016813,2]
[330501837,1719522429350,-24862.1831851,0.00016825,2]
[330501838,1719522429370,-308.2491863,0.00016955,2]
[330501839,1719522429394,-3383.91948784,0.00017955,2]
[330501840,1719522429414,-587.0,0.00018083,2]
[330501841,1719522429436,-302.56273446,0.0001818,2]
[330501842,1719522429455,-2838.27930826,0.0001818,2]
[330501843,1719522429477,-731.73331846,0.0001818,2]
[330501844,1719522429497,-1577.5572453,0.0001818,2]
[330501845,1719522429517,-587.0,0.0001827,2]
[330501846,1719522429537,-825.99151127,0.00018798,2]
[330501847,1719522429556,-208.86720996,0.00018899,2]
[330501848,1719522429577,-490.34211049,0.00018899,2]
[330501849,1719522429598,-17916.4927083,0.000189,2]
[330501850,1719522429618,-250.0,0.00019041,2]
[330501851,1719522429640,-402.7993587,0.00019165,2]
[330501852,1719522429661,-179.60654264,0.00019165,2]
[330501853,1719522429682,-500.0,0.00019178,2]
[330501854,1719522429702,-500.0,0.00019178,2]
[330501855,1719522429722,-500.0,0.00019178,2]
[330501856,1719522429881,-282.89028662,0.00019178,2]
[330501857,1719522429901,-477.11053626,0.00019178,2]
[330501858,1719522429920,-163.724839,0.00019178,2]
[330501859,1719522429940,-3383.91948784,0.00019754,2]
[330501860,1719522429960,-517.0,0.00019788,2]
[330501861,1719522429980,-300.0,0.0002,2]
[330501862,1719522430000,-467.0,0.00020097,2]
[330501863,1719522430020,-154.97340122,0.00021095,2]
[330501864,1719522430040,-227.88919192,0.00021095,2]
[330501865,1719522430060,-161.51188784,0.00021095,2]
[330501866,1719522430080,-154.85288975,0.00021095,2]
[330501867,1719522430100,-161.49972,0.00021096,2]
[330501868,1719522430122,-11192.89939916,0.00021463,2]
[330501869,1719522433119,-154.85288975,0.00021095,2]
[330501870,1719522433140,-154.85288975,0.00021095,2]
[330501871,1719522433159,-154.82195475,0.00021095,2]
[330501872,1719522433181,-6723.59330914,0.00021463,2]
[330501873,1719522433202,-3383.91948784,0.00021554,2]
[330501874,1719522433221,-318.1015147,0.00021917,2]
[330501875,1719522433241,-154.85288975,0.00021917,2]
[330501876,1719522433260,-195.36861794,0.00021917,2]
[330501877,1719522433279,-154.85288975,0.00021917,2]
[330501878,1719522433299,-154.82195475,0.00021917,2]
[330501879,1719522433319,-154.85288975,0.00021917,2]
[330501880,1719522433340,-154.82195475,0.00021917,2]
[330501881,1719522433360,-292.95882568,0.00021917,2]
[330501882,1719522433380,-166.6666669,0.00021918,2]
[330501883,1719522433404,-1294.69431889,0.0002195,2]
[330501884,1719522437102,-153.80876398,0.0002195,2]
[330501885,1719522438115,531.32438802,0.00013283,2]
[330501886,1719522438140,-1401.68990273,0.0002195,2]
[330501887,1719522438158,-16990.545622,0.00022022,2]
[330501888,1719522438297,-154.82195475,0.0002243,2]
[330501889,1719522438317,-154.82195475,0.0002243,2]
[330501890,1719522438336,-154.88382167,0.0002243,2]
[330501891,1719522438355,-154.82195475,0.0002243,2]
[330501892,1719522438374,-154.82195475,0.00022941,2]
[330501893,1719522438397,-866.264744,0.00023305,2]
[330501894,1719522438416,-3383.91948784,0.00023353,2]
[330501895,1719522438436,-17916.4927083,0.00024986,2]
[330501896,1719522438454,-22416.13102164,0.00025501,2]
[330501897,1719522438475,-154.43811093,0.00025585,2]
[330501898,1719522438494,-159.50123807,0.00025715,2]
[330501899,1719522438513,-151.12300556,0.0002618,2]
[330501900,1719522438532,-151.12300556,0.00026425,2]
[330501901,1719522438550,-151.12300556,0.00026521,2]
[330501902,1719522438569,-151.12300556,0.00026922,2]
[330501903,1719522438590,-159.50123808,0.00027139,2]
[330501904,1719522438609,-151.12300556,0.00027204,2]
[330501905,1719522438629,-151.12300556,0.00027356,2]
[330501906,1719522438647,-670.94576027,0.000275,30]
[330501907,1719522438668,-151.12300556,0.00027655,2]
[330501908,1719522438688,-151.12300556,0.00027935,2]
[330501909,1719522438707,-154.43811093,0.00028121,2]
[330501910,1719522438726,-151.12300556,0.00028379,2]
[330501911,1719522438744,-151.12300556,0.00028421,2]
[330501912,1719522438763,-155.57372186,0.00028754,2]
[330501913,1719522438784,-153.0,0.00029209,2]
[330501914,1719522438805,-153.0,0.00029209,2]
[330501915,1719522438823,-153.0,0.00029246,2]
[330501916,1719522438842,-153.0,0.00029246,2]
[330501917,1719522438862,-153.0,0.00029246,2]
[330501918,1719522438881,-153.0,0.00029246,2]
[330501919,1719522438900,-153.0,0.00029246,2]
[330501920,1719522438919,-153.0,0.00029246,2]
[330501921,1719522438939,-153.0,0.00029246,2]
[330501922,1719522438959,-153.0,0.00029246,2]
[330501923,1719522438978,-151.12300556,0.0002932,2]
[330501924,1719522438997,-152.08878095,0.00029668,2]
[330501925,1719522439015,-10680.02295697,0.00029813,2]
[330501926,1719522439033,-350.76834855,0.0003,30]
[330501927,1719522439052,-642.05782593,0.0003,4]
[330501928,1719522439072,-470.62851123,0.0003,4]
[330501929,1719522439091,-286.73281803,0.0003,4]
[330501930,1719522439111,-154.43811093,0.00030271,7]
[330501931,1719522439132,-202.64780772,0.00030282,2]
[330501932,1719522439151,-151.12300556,0.00030306,7]
[330501933,1719522439172,-151.12300556,0.00030518,7]
[330501934,1719522439191,-161.49972,0.00030753,2]
[330501935,1719522439209,-154.43811093,0.00030766,7]
[330501936,1719522439227,-154.43811093,0.00031689,7]
[330501937,1719522439245,-152.08878095,0.00031701,7]
[330501938,1719522439263,-154.43811093,0.00031953,7]
[330501939,1719522439283,-151.12300556,0.00032159,7]
[330501940,1719522439302,-151.12300556,0.00032257,7]
[330501941,1719522439322,-17916.4927083,0.0003248,3]
[330501942,1719522439341,-17916.4927083,0.0003249,3]
[330501943,1719522439359,-42817.77749935,0.000325,60]
[330501944,1719522439377,-154.43811093,0.00033407,7]
[330501945,1719522439398,-155.57372186,0.00033641,7]
[330501946,1719522439416,-151.12300556,0.00034415,7]
[330501947,1719522439433,-972.815005,0.00034592,4]
[330501948,1719522439455,-151.12300556,0.00034597,7]
[330501949,1719522439475,-1000.0,0.00034601,30]
[330501950,1719522439493,-694.65587847,0.00034623,4]
[330501951,1719522439511,-666.70382175,0.00034623,4]
[330501952,1719522439530,-154.82195475,0.0003463,4]
[330501953,1719522439547,-181.59371313,0.0003463,4]
[330501954,1719522439566,-250.24655234,0.00034634,4]
[330501955,1719522439584,-183.70617726,0.00034634,4]
[330501956,1719522439602,-239.60614247,0.00034642,4]
[330501957,1719522439619,-155.77257915,0.00034642,4]
[330501958,1719522439637,-214.18723696,0.00034642,4]
[330501959,1719522439656,-154.43811093,0.00034673,7]
[330501960,1719522439675,-151.12300556,0.00034752,7]
[330501961,1719522439695,-154.43811093,0.0003487,7]
[330501962,1719522439715,-17916.4927083,0.00034889,4]